[Event "German Bundesliga 2021-22"]
[Site "Germany"]
[Date "2022.05.01"]
[Round "6.5"]
[White "Ribli, Zoltan"]
[Black "Boensch, Uwe"]
[Result "1/2-1/2"]
[ECO "E05"]
[WhiteElo "2529"]
[BlackElo "2494"]
[Annotator "TA"]
[PlyCount "125"]
[EventDate "2022.03.05"]
[EventType "team-tourn"]
[EventCountry "GER"]
[SourceTitle "playchess.com"]
[Source "ChessBase"]
[SourceQuality "1"]
[TimeControl "40/5400+30:1800+30"]

{[%evp 18,125,20,8,10,-5,12,16,25,14,31,27,27,28,54,46,52,54,52,43,44,50,51,52,81,80,81,78,75,77,108,95,105,94,146,150,162,161,144,149,153,124,272,307,284,279,425,280,273,228,562,567,565,547,475,0,156,156,156,157,153,124,250,247,233,243,266,256,313,299,306,306,403,355,443,457,424,258,444,445,506,499,560,560,562,238,238,272,257,36,339,219,185,471,460,379,520,0,189,0,0,0,0,0,0,0,0,0,0,0]} 1. Nf3 {[%emt 0:00:00] ChessBase II} d5 {[%emt 0:00:00]} 2. g3 {[%emt 0:00:00]} Nf6 {[%emt 0:00:00]} 3. Bg2 {[%emt 0:00:00]} e6 {[%emt 0:00:00]} 4. O-O {[%emt 0:00:00]} Be7 {[%emt 0:00:00]} 5. c4 {[%emt 0:00:00]} O-O {[%emt 0:00:00]} 6. d4 {[%emt 0:00:00]} dxc4 {[%emt 0:00:00]} 7. Qc2 {[%emt 0:00:00]} a6 {[%emt 0:00:00]} 8. a4 {[%emt 0:00:00]} Bd7 {[%emt 0:00:00]} 9. Qxc4 {[%emt 0:00:00]} Bc6 {[%emt 0:00:00]} 10. Bf4 {[%emt 0:00:00]} Bd6 {[%emt 0:00:00] E05: Open Catalan: 5 Nf3 Be7.} 11. Qc1 {[%emt 0:00:00]} Bxf4 {[%emt 0:01:36]} 12. Qxf4 {[%emt 0:00:00]} Qd6 {[%emt 0:00:32]} 13. Qc1 {[%emt 0:00:00] [#]} Bxf3 $146 {[%emt 0:10:36]} ({Predecessor:} 13... Bd5 14. Nc3 Nc6 15. e3 Nb4 16. Qb1 Qe7 17. a5 c5 18. Nxd5 Nfxd5 19. e4 Nc7 20. dxc5 Qxc5 {0-1 (37) Eljanov,P (2755)-Aronian,L (2780) Wijk aan Zee 2017 CBM 177 [ChessBase II]}) 14. Bxf3 {[%emt 0:00:00]} c6 {[%emt 0:00:05]} 15. Rd1 {[%emt 0:01:03]} e5 {[%emt 0:00:26]} 16. dxe5 {[%emt 0:03:21]} Qxe5 {[%emt 0:00:07]} 17. Nd2 {[%emt 0:00:42][%cal Bb1d2,Bd2c4,Bc4a5][%mdl 32]} Nbd7 {[%emt 0:04:04]} 18. Nc4 {[%emt 0:03:11]} Qc7 {[%emt 0:09:39]} 19. Qf4 {[%emt 0:03:20]} Qxf4 {[%emt 0:01:26]} 20. gxf4 {[%emt 0:00:18]} Rfd8 {[%emt 0:06:44]} 21. Na5 {[%emt 0:03:04] White is more active.} Rab8 {[%emt 0:01:36] [#]} 22. Bxc6 $1 {[%emt 0:02:45]} bxc6 {[%emt 0:00:21]} 23. Nxc6 {[%emt 0:00:05]} Re8 {[%emt 0:00:14]} 24. Nxb8 {[%emt 0:00:05]} Rxb8 {[%emt 0:00:02]} 25. Rd6 {[%emt 0:00:27]} Ra8 {[%emt 0:23:42]} (25... Rxb2 $2 26. Rxa6 Rxe2 27. Ra8+ Re8 28. Rxe8+ Nxe8 29. a5 $18) (25... a5 $142) 26. Rad1 $16 {[%emt 0:01:37]} Ra7 {[%emt 0:00:37]} 27. e4 $1 {[%emt 0:06:45]} Nf8 {[%emt 0:00:12]} 28. Rc6 {[%emt 0:05:39]} Nxe4 {[%emt 0:03:01]} 29. Rd8 {[%emt 0:00:12] Hoping for Rcc8.} f5 {[%emt 0:03:49]} (29... Nf6 $16 30. a5 N6d7) 30. Rcc8 $1 $18 {[%emt 0:02:46][%csl Gc8][%cal Rd8f8]} ({Weaker is} 30. f3 Nf6 $16) 30... Rf7 {[%emt 0:00:44]} 31. b4 {[%emt 0:00:09]} Nf6 {[%emt 0:28:26]} (31... Rf6 $142 32. b5 Nd6) 32. Ra8 {[%emt 0:08:32]} Nh5 {[%emt 0:00:49]} 33. Rxa6 {[%emt 0:00:32]} Nxf4 $2 {[%emt 0:00:06]} (33... Rc7 {is tougher.} 34. b5 Rc1+ 35. Kg2 Nxf4+ 36. Kf3 g5) 34. Raa8 {[%emt 0:00:24]} N4e6 {[%emt 0:00:53]} 35. Rd6 {[%emt 0:05:59]} Nf4 {[%emt 0:00:51]} 36. Rdd8 $2 {[%emt 0:02:49]} (36. h4 $18) 36... N4e6 $1 $16 {[%emt 0:00:22]} 37. Rd1 {[%emt 0:00:02][%mdl 1024] Strongly threatening a5. White has strong compensation.} Rb7 {[%emt 0:00:35]} 38. b5 {[%emt 0:00:06][%cal Bb4b5,Bb5b6][%mdl 32]} Kf7 {[%emt 0:02:29]} 39. Rb1 {[%emt 0:00:12] aiming for b6.} Nc7 {[%emt 0:02:51]} (39... Nd7 $16) 40. Rc8 $18 {[%emt 0:02:09]} Nfe6 {[%emt 0:00:40]} 41. b6 {[%emt 0:30:31]} Ke7 {[%emt 0:32:00]} 42. a5 {[%emt 0:00:07]} Kd7 {[%emt 0:00:26]} 43. Rh8 {[%emt 0:01:01]} ({Not} 43. Rxc7+ Nxc7 44. Rd1+ Ke6 $11) 43... Na6 {[%emt 0:01:11]} 44. Rxh7 {[%emt 0:01:37]} Kc6 {[%emt 0:00:00]} 45. Rh8 {[%emt 0:00:00]} Rd7 {[%emt 0:00:00]} 46. Ra8 {[%emt 0:00:00]} Nec5 {[%emt 0:00:00]} 47. Ra7 {[%emt 0:00:00]} Rb7 $2 {[%emt 0:00:00]} (47... g5 {was called for.} 48. Kg2 Rd5) 48. h4 {[%emt 0:00:00]} Nb8 {[%emt 0:00:00]} 49. Kg2 {[%emt 0:00:00]} Nbd7 {[%emt 0:00:00]} 50. Kg3 {[%emt 0:00:00]} g6 {[%emt 0:00:00]} 51. Rc1 {[%emt 0:00:00]} (51. f3 $142 {Ra8 is the strong threat.} Ne6 52. Ra8) 51... Rxa7 {[%emt 0:00:00]} 52. bxa7 {[%emt 0:00:00]} Kb7 {[%emt 0:00:00]} 53. f3 $2 {[%emt 0:00:00]} (53. Rd1 $1 $18) 53... Kxa7 $2 {[%emt 0:00:00][%mdl 8192]} (53... f4+ $1 $14 54. Kg2 Kxa7) 54. Rd1 {[%emt 0:00:00] Black must now prevent Rd6.} Nf8 {[%emt 0:00:00]} 55. Kf4 $1 {[%emt 0:00:00]} Ka6 {[%emt 0:00:00]} 56. Ke5 $1 {[%emt 0:00:00]} Kxa5 {[%emt 0:00:00] [#]} 57. Rd8 $2 {[%emt 0:00:00]} (57. Kd6 $1 {[%cal Rd6c5]} Kb4 58. Rb1+ Nb3 59. Ke7) 57... Kb5 {[%emt 0:00:00] [#]} 58. Rc8 $2 {[%emt 0:00:00]} ({Stronger than} 58. Rb8+ Kc4 59. Rxf8 Nd7+ 60. Ke6 Nxf8+ $11) (58. Kf6 $1 $18 Nfe6 59. Rb8+ Kc6 60. Kxg6) 58... Kc4 {[%emt 0:00:00] The position is equal.} 59. Kd6 {[%emt 0:00:00]} Nfe6 {[%emt 0:00:00]} 60. Rg8 {[%emt 0:00:00]} Nf4 {[%emt 0:00:17]} 61. Ke5 {[%emt 0:00:00]} Ncd3+ {[%emt 0:01:08]} 62. Kf6 {[%emt 0:00:00]} Kd4 {[%emt 0:00:16]} 63. Re8 {[%emt 0:00:39][%mdl 64] Remove Defender. White really could win this.  Weighted Error Value: White=0.36/Black=0.30} 1/2-1/2

[Event "German Bundesliga 2021-22"]
[Site "Germany"]
[Date "2022.05.01"]
[Round "6.5"]
[White "Sorensen, Hampus"]
[Black "Dardha, Daniel"]
[Result "1/2-1/2"]
[ECO "B06"]
[WhiteElo "2367"]
[BlackElo "2541"]
[Annotator "TA"]
[PlyCount "85"]
[EventDate "2022.03.05"]
[EventType "team-tourn"]
[EventCountry "GER"]
[SourceTitle "playchess.com"]
[Source "ChessBase"]
[SourceQuality "1"]
[TimeControl "40/5400+30:1800+30"]

{[%evp 14,85,32,31,53,60,53,55,58,54,50,37,43,36,35,38,54,38,46,35,28,0,0,0,0,0,0,-20,37,-16,0,-5,0,0,0,0,0,0,0,0,13,7,30,0,7,0,0,0,0,0,0,0,21,-20,42,26,66,0,0,0,1,13,8,0,0,0,0,0,0,0,0,0,0,0]} 1. e4 {[%emt 0:00:00]} g6 {[%emt 0:00:00]} 2. d4 {[%emt 0:00:00]} Bg7 {[%emt 0:00:00]} 3. Nf3 {[%emt 0:00:00]} c6 {[%emt 0:00:00]} 4. Bd3 {[%emt 0:01:15]} d5 {[%emt 0:00:00]} 5. exd5 {[%emt 0:01:03]} cxd5 {[%emt 0:00:00]} 6. O-O {[%emt 0:00:51]} Nc6 {[%emt 0:00:00]} 7. c3 {[%emt 0:00:43]} Nf6 {[%emt 0:00:00]} 8. Bf4 {[%emt 0:12:37]} Bf5 {[%emt 0:00:18] B13: Caro-Kann: Exchange Variation and Panov-Botvinnik Attack.} 9. Bxf5 {[%emt 0:02:10]} gxf5 {[%emt 0:00:16]} 10. Ne5 {[%emt 0:08:14]} Ne4 {[%emt 0:06:48] [#] White is slightly better.} 11. Nd3 $146 {[%emt 0:02:58]} ({Predecessor:} 11. Qh5 Nxe5 12. dxe5 e6 13. Qe2 O-O 14. Re1 Qb6 15. Be3 Qc7 16. f3 Nc5 17. Bd4 {½-½ (30) Shour,J (2210)-Boukh,B (2370) St Petersburg 1998}) 11... e6 {[%emt 0:03:18]} 12. f3 {[%emt 0:03:26]} Nd6 {[%emt 0:07:59]} 13. Nd2 {[%emt 0:03:22]} h5 {[%emt 0:00:47]} 14. Re1 {[%emt 0:02:25]} Bh6 {[%emt 0:05:06]} 15. Qe2 {[%emt 0:04:01]} Kf8 {[%emt 0:13:17]} 16. Qe3 {[%emt 0:02:45]} Kg7 {[%emt 0:02:58]} 17. b3 {[%emt 0:04:57]} Qf6 {[%emt 0:02:38]} 18. Kh1 {[%emt 0:07:43]} Rac8 {[%emt 0:05:26]} 19. Rac1 {[%emt 0:02:06]} h4 {[%emt 0:01:26]} 20. Rg1 {[%emt 0:03:18] [#] Hoping for g4.} Rcd8 {[%emt 0:05:20]} (20... Bxf4 $11 21. Nxf4 b5) 21. Rce1 {[%emt 0:03:31]} (21. g4 $14 hxg3 22. Rxg3+ Kf8 23. Bxd6+ Rxd6 24. f4) 21... Bxf4 $11 {[%emt 0:05:40]} 22. Nxf4 {[%emt 0:00:50]} Kf8 {[%emt 0:07:15]} 23. Re2 {[%emt 0:05:58]} Nc8 {[%emt 0:05:07]} 24. Nb1 {[%emt 0:03:26][%cal Bd2b1,Bb1a3,Ba3c2,Bc2e1][%mdl 32]} N8e7 {[%emt 0:02:46]} 25. Na3 {[%emt 0:00:31]} Ng6 {[%emt 0:05:31]} 26. Nc2 {[%emt 0:00:42]} Nce7 {[%emt 0:04:33]} 27. Ne1 {[%emt 0:00:20]} Rc8 {[%emt 0:00:35]} 28. Nxg6+ {[%emt 0:04:20]} Nxg6 {[%emt 0:02:11]} 29. Qd2 {[%emt 0:01:30]} Kg7 {[%emt 0:03:00]} 30. Nd3 {[%emt 0:02:00]} Rc7 {[%emt 0:00:22]} 31. Ne5 {[%emt 0:11:05]} Nxe5 {[%emt 0:06:09]} 32. dxe5 {[%emt 0:00:58]} Qh6 {[%emt 0:00:17] White must now prevent ...Qxd2.} 33. Qd4 {[%emt 0:00:33]} f4 {[%emt 0:01:59]} ({Black should try} 33... Rhc8 $11) 34. c4 $14 {[%emt 0:02:49]} Rd8 {[%emt 0:02:43] [#]} 35. cxd5 {[%emt 0:01:03]} ({Better is} 35. Re4 $1 $14 dxe4 36. Qxd8) 35... Rxd5 $11 {[%emt 0:00:07] The position is equal.} 36. Qxa7 {[%emt 0:00:07]} Qg5 {[%emt 0:00:32]} 37. Qf2 {[%emt 0:02:30]} Rc3 {[%emt 0:01:13]} 38. Rge1 {[%emt 0:00:33]} Rcd3 {[%emt 0:01:00]} 39. Kg1 {[%emt 0:00:54]} h3 {[%emt 0:01:08]} 40. Kh1 {[%emt 0:01:29]} Qh5 {[%emt 0:01:26]} 41. Re4 {[%emt 0:00:00]} Rd2 {[%emt 0:00:00]} 42. R4e2 {[%emt 0:00:00]} R2d3 {[%emt 0:00:00]} 43. Re4 {[%emt 0:00:00] Weighted Error Value: White=0.11 (very precise) /Black=0.10 (very precise)} 1/2-1/2

[Event "German Bundesliga 2021-22"]
[Site "Germany"]
[Date "2022.05.01"]
[Round "6.6"]
[White "Novikov, Igor"]
[Black "Stark, Lars"]
[Result "1-0"]
[ECO "E15"]
[WhiteElo "2551"]
[BlackElo "2386"]
[Annotator "TA"]
[PlyCount "143"]
[EventDate "2022.03.05"]
[EventType "team-tourn"]
[EventCountry "GER"]
[SourceTitle "playchess.com"]
[Source "ChessBase"]
[SourceQuality "1"]
[TimeControl "40/5400+30:1800+30"]

{[%evp 9,143,24,30,29,46,35,44,34,44,24,32,36,33,29,29,18,30,0,0,0,0,0,0,0,0,0,33,35,38,28,34,31,31,35,45,32,41,43,39,29,53,54,59,52,57,48,47,51,65,50,50,47,57,44,53,43,44,33,45,40,43,43,44,44,63,52,67,68,91,91,95,61,64,60,64,66,79,78,80,71,87,57,70,70,70,70,110,114,187,189,336,112,78,95,90,25,104,82,75,74,114,25,323,314,409,409,381,331,791,770,645,307,109,105,306,306,1931,1923,29950,6427,29968,29970,29970,29971,29971,29972,29972,29973,29971,29972,29972,29973,29973,29974,29984,29985]} 1. d4 {[%emt 0:00:00]} Nf6 {[%emt 0:00:00]} 2. c4 {[%emt 0:00:00]} e6 {[%emt 0:00:00]} 3. Nf3 {[%emt 0:00:00]} b6 {[%emt 0:00:00]} 4. g3 {[%emt 0:00:00]} Ba6 {[%emt 0:00:00]} 5. b3 {[%emt 0:00:00]} c6 {[%emt 0:00:00]} 6. Bg2 {[%emt 0:00:00] E15: Queen's Indian: 4 g3 sidelines, 4 g3 Ba6 and 4 g3 Bb7 early deviations.} Bb4+ {[%emt 0:00:00]} 7. Nbd2 {[%emt 0:01:10]} d5 {[%emt 0:00:00]} 8. O-O {[%emt 0:01:57] White is slightly better.} Nbd7 {[%emt 0:00:00]} 9. Bb2 {[%emt 0:04:02]} (9. e4 $5) 9... O-O {[%emt 0:00:00]} 10. Rc1 {[%emt 0:04:48]} Rc8 {[%emt 0:00:00]} 11. a3 {[%emt 0:05:10]} Be7 {[%emt 0:01:56] [#]} 12. b4 $146 {[%emt 0:23:05]} ({Predecessor:} 12. Re1 Ne4 13. Nxe4 dxe4 14. Nd2 f5 15. b4 Qc7 16. f3 Bg5 17. e3 exf3 18. Nxf3 {1-0 (32) Horvath,C (2540)-Emodi,B (2315) Hungary 1995}) 12... Bb7 {[%emt 0:09:35]} 13. c5 {[%emt 0:07:28]} a5 {[%emt 0:01:13]} 14. Qc2 {[%emt 0:01:56]} axb4 {[%emt 0:02:34]} 15. axb4 {[%emt 0:00:03]} Ba6 {[%emt 0:00:31]} 16. Rfe1 {[%emt 0:00:38]} Bb5 {[%emt 0:00:43]} 17. e4 {[%emt 0:05:40][%cal Be2e4,Be4e5][%mdl 32]} Qc7 {[%emt 0:08:37]} 18. e5 {[%emt 0:03:29]} Ne8 {[%emt 0:01:03]} 19. h4 {[%emt 0:01:09]} Qd8 {[%emt 0:01:24]} 20. Nb1 {[%emt 0:02:17]} Nc7 {[%emt 0:00:44]} 21. Nc3 {[%emt 0:01:45]} Ba6 {[%emt 0:03:32]} 22. Rb1 {[%emt 0:03:01]} Bc4 {[%emt 0:10:27]} 23. Nd2 {[%emt 0:01:35]} Ba6 {[%emt 0:02:02]} 24. Bc1 {[%emt 0:01:22]} bxc5 {[%emt 0:02:02]} 25. bxc5 {[%emt 0:07:12]} Rb8 {[%emt 0:01:51]} 26. Rxb8 {[%emt 0:03:08]} Qxb8 {[%emt 0:01:03]} 27. Nf3 {[%emt 0:03:41]} Rc8 {[%emt 0:03:24]} 28. Bg5 {[%emt 0:01:38]} Bf8 {[%emt 0:00:37]} 29. Rb1 {[%emt 0:01:20]} Qa8 {[%emt 0:01:53]} 30. Ra1 {[%emt 0:01:32]} Qb7 {[%emt 0:00:44]} 31. Nd2 {[%emt 0:02:18]} Rb8 {[%emt 0:01:37]} 32. Rb1 {[%emt 0:01:05]} Qc8 {[%emt 0:02:25]} 33. Nb3 {[%emt 0:01:25]} Nb5 {[%emt 0:02:25]} 34. Ra1 {[%emt 0:02:48] Inhibits Na3.} h6 {[%emt 0:01:38]} 35. Be3 {[%emt 0:01:01]} Nxc3 {[%emt 0:00:14]} 36. Qxc3 {[%emt 0:00:04]} Be7 {[%emt 0:00:22]} 37. Ra3 {[%emt 0:01:27]} Bd8 {[%emt 0:08:13]} 38. Qa1 {[%emt 0:01:30]} Bc4 {[%emt 0:02:34]} 39. Nd2 {[%emt 0:00:28]} Bb5 {[%emt 0:00:06]} 40. Bh3 {[%emt 0:05:00]} Nf8 {[%emt 0:03:50]} 41. h5 {[%emt 0:31:55]} Be2 {[%emt 0:32:23]} 42. f3 {[%emt 0:00:42]} Nh7 {[%emt 0:02:44]} 43. Kf2 {[%emt 0:00:27]} Bb5 {[%emt 0:00:05]} 44. f4 {[%emt 0:01:50]} Nf8 {[%emt 0:02:39]} 45. Bg4 {[%emt 0:01:10]} (45. Nf3 {is more complex.} Bc4 46. g4 Rb3 47. Rxb3 Bxb3 48. Bf1) 45... Nh7 {[%emt 0:00:20]} 46. Be2 {[%emt 0:00:00]} Bxe2 {[%emt 0:00:00]} 47. Kxe2 {[%emt 0:00:00]} f5 {[%emt 0:00:00]} 48. Ra7 {[%emt 0:00:00]} Bc7 {[%emt 0:00:00]} (48... Nf8 $16 49. Nf3 g6) 49. Qa6 {[%emt 0:00:00]} Qd7 {[%emt 0:00:00]} (49... Bd8 $142 50. Kf3 Nf8) 50. Ra8 $2 {[%emt 0:00:00]} (50. Kd3 $18 {and White stays clearly on top.}) 50... Rxa8 $16 {[%emt 0:00:00]} 51. Qxa8+ {[%emt 0:00:00]} Nf8 {[%emt 0:00:00]} 52. Kd3 {[%emt 0:00:00]} (52. Nb3 $16) 52... g6 {[%emt 0:00:00]} (52... Kf7 $11 {remains equal.}) 53. hxg6 $1 {[%emt 0:00:00]} Kg7 {[%emt 0:00:00]} 54. Nb3 $1 {[%emt 0:00:00] Bd2 is the strong threat. White is much more active.} Nxg6 {[%emt 0:00:00]} 55. Qb7 {[%emt 0:00:00]} (55. Bd2 $1 $16) 55... Nf8 $2 {[%emt 0:00:00][%mdl 8192]} (55... Ne7 $11) 56. Bd2 $1 $18 {[%emt 0:00:00] Black must now prevent Ba5.} Bd8 {[%emt 0:00:00] [#]} 57. Qxd7+ {[%emt 0:00:00]} Nxd7 {[%emt 0:00:00] [#]} 58. Ba5 $1 {[%emt 0:00:00]} Bxa5 {[%emt 0:00:00]} (58... Be7 59. Bc7 Kf8) 59. Nxa5 {[%emt 0:00:00][%mdl 4096] Endgame KN-KN} Nb8 {[%emt 0:00:00]} 60. Ke3 {[%emt 0:00:00]} (60. Kc3 $142 Kf7 61. Kb4) 60... Kf7 $2 {[%emt 0:00:00]} ({Black should try} 60... Kf8 $18 61. Kf3 h5) 61. Kf3 $16 {[%emt 0:00:00]} Ke7 $2 {[%emt 0:00:00]} (61... h5 $16 {was necessary.}) 62. g4 $18 {[%emt 0:00:00] Strongly threatening Kg3.} fxg4+ $2 {[%emt 0:00:00]} (62... Kf7 63. Nb7 Na6) 63. Kxg4 {[%emt 0:00:00] And now Kh5 would win.} Kd7 {[%emt 0:00:00]} 64. f5 {[%emt 0:00:00]} h5+ {[%emt 0:00:00]} 65. Kxh5 {[%emt 0:00:00] White mates.} exf5 {[%emt 0:00:00]} 66. Kg5 {[%emt 0:00:00]} Ke6 {[%emt 0:00:00]} 67. Kf4 {[%emt 0:00:00]} Na6 {[%emt 0:00:00]} 68. Nxc6 {[%emt 0:00:00]} Kd7 {[%emt 0:00:00]} 69. Na7 {[%emt 0:00:00]} Ke6 {[%emt 0:00:00]} 70. c6 {[%emt 0:00:00]} Nc7 {[%emt 0:00:00]} 71. Kg5 {[%emt 0:00:00]} Na6 {[%emt 0:00:00]} 72. Nb5 {[%emt 0:00:00] Weighted Error Value: White=0.20 (precise) /Black=0.26 (precise)} 1-0

[Event "German Bundesliga 2021-22"]
[Site "Germany"]
[Date "2022.05.01"]
[Round "6.6"]
[White "Heinemann, Thies"]
[Black "Warmerdam, Max"]
[Result "0-1"]
[ECO "B15"]
[WhiteElo "2495"]
[BlackElo "2607"]
[Annotator "TA"]
[PlyCount "148"]
[EventDate "2022.03.05"]
[EventType "team-tourn"]
[EventCountry "GER"]
[SourceTitle "playchess.com"]
[Source "ChessBase"]
[SourceQuality "1"]
[TimeControl "40/5400+30:1800+30"]

{[%evp 16,148,11,9,16,0,0,-6,0,0,0,-22,0,0,0,0,0,-10,0,0,-7,-14,-9,-7,0,-18,-10,-36,-10,-43,0,-37,-8,-44,-32,-27,-41,-72,-57,-58,-71,-70,0,-58,-52,-85,-88,-93,-94,-98,-92,-89,-90,-93,-100,-121,-110,-128,-140,-128,-132,-121,-100,-118,-91,-106,-105,-87,-87,-93,-87,-93,-89,-106,-81,-96,-106,-158,-114,-107,-95,-108,-123,-240,-227,-277,-194,-437,-435,-437,-437,-393,-393,-393,-391,-472,-463,-660,-406,-413,-372,-685,-503,-544,-541,-503,-396,-715,-423,-440,-440,-779,-571,-1326,-494,-488,-487,-487,-461,-435,-435,-639,-435,-6610,-6103,-1463,-435,-29984,-29985,-29985,-29986,-29986,-29987,-29987,-29987]} 1. e4 {[%emt 0:00:00]} c6 {[%emt 0:00:00]} 2. d4 {[%emt 0:00:00]} d5 {[%emt 0:00:00]} 3. Nd2 {[%emt 0:00:00]} dxe4 {[%emt 0:00:00]} 4. Nxe4 {[%emt 0:00:00]} Nf6 {[%emt 0:00:00]} 5. Nxf6+ {[%emt 0:00:00]} exf6 {[%emt 0:00:00]} 6. Nf3 {[%emt 0:00:00]} Bd6 {[%emt 0:00:00]} 7. Be2 {[%emt 0:00:00]} Na6 {[%emt 0:00:00]} 8. O-O {[%emt 0:03:10]} Nc7 {[%emt 0:00:00]} 9. Re1 {[%emt 0:05:37]} O-O {[%emt 0:00:00]} 10. c3 {[%emt 0:03:13]} Re8 {[%emt 0:03:10]} 11. Bd3 {[%emt 0:10:10]} Bg4 {[%emt 0:02:57]} 12. Rxe8+ {[%emt 0:04:33]} Qxe8 {[%emt 0:00:17]} 13. Bd2 {[%emt 0:01:23]} a5 {[%emt 0:06:50]} 14. h3 {[%emt 0:14:26]} Bh5 {[%emt 0:18:03]} 15. Qe2 {[%emt 0:02:24]} Qd7 {[%emt 0:00:39]} 16. Re1 {[%emt 0:01:04]} a4 {[%emt 0:03:03]} 17. Qe4 {[%emt 0:05:23]} Bg6 {[%emt 0:07:21]} 18. Qe2 {[%emt 0:00:08]} b5 {[%emt 0:03:11]} 19. Bxg6 {[%emt 0:06:43]} hxg6 {[%emt 0:00:10]} 20. c4 {[%emt 0:01:24]} g5 {[%emt 0:19:18]} 21. Be3 {[%emt 0:12:07]} Rb8 {[%emt 0:14:47]} 22. Qc2 {[%emt 0:05:55]} Bf8 {[%emt 0:06:20]} 23. Rc1 {[%emt 0:02:14]} a3 {[%emt 0:04:49]} 24. bxa3 {[%emt 0:04:12]} (24. b3 $5 {[%cal Rc4b5]}) 24... Bxa3 {[%emt 0:00:08]} 25. Rb1 {[%emt 0:01:32]} Ra8 {[%emt 0:00:16]} 26. Rb3 {[%emt 0:06:36]} Bf8 {[%emt 0:00:26]} 27. Rc3 {[%emt 0:01:35]} Bb4 {[%emt 0:00:36]} 28. Rb3 {[%emt 0:00:14]} Bf8 {[%emt 0:01:38]} 29. Rc3 $1 {[%emt 0:00:36]} Ne8 {[%emt 0:03:03]} 30. Qe2 {[%emt 0:06:05]} Nd6 {[%emt 0:00:33]} 31. cxb5 {[%emt 0:00:50]} cxb5 {[%emt 0:01:17]} 32. Rc2 {[%emt 0:01:40]} Qf5 {[%emt 0:01:07]} 33. Ne1 {[%emt 0:00:54]} Ra3 {[%emt 0:01:50]} 34. Qf3 {[%emt 0:00:58]} Qe6 {[%emt 0:00:36]} 35. d5 {[%emt 0:01:30]} Qe5 {[%emt 0:00:19]} 36. Qd1 {[%emt 0:00:20]} Nc4 {[%emt 0:03:35]} 37. Bc1 {[%emt 0:00:17]} Qa1 {[%emt 0:00:43]} 38. Qe2 {[%emt 0:00:29]} Ra8 {[%emt 0:00:27]} 39. g3 {[%emt 0:01:07]} Rd8 {[%emt 0:00:10]} 40. Qe4 {[%emt 0:01:00]} Nb6 {[%emt 0:01:10]} 41. Kg2 {[%emt 0:00:00]} Nxd5 {[%emt 0:00:00]} 42. Bd2 {[%emt 0:00:00]} b4 {[%emt 0:00:00]} 43. Nf3 {[%emt 0:00:00]} Qb1 {[%emt 0:00:00]} 44. Qc4 {[%emt 0:01:30]} Qd1 {[%emt 0:00:00]} 45. Rb2 {[%emt 0:09:07]} Qa4 {[%emt 0:00:00]} 46. h4 {[%emt 0:02:08]} ({Better is} 46. Rc2) 46... Qa3 {[%emt 0:02:16]} 47. Rc2 {[%emt 0:01:27]} Nb6 {[%emt 0:01:26]} 48. Qe4 {[%emt 0:01:34]} gxh4 {[%emt 0:00:41]} 49. Qxh4 {[%emt 0:01:09] [#]} (49. Nxh4 $17 Nd5 50. Nf3) 49... Qa8 $1 $19 {[%emt 0:02:55]} 50. Be3 {[%emt 0:09:13]} Nd5 {[%emt 0:00:27]} 51. Qd4 $2 {[%emt 0:01:48]} (51. Bd2 {is a better defense.}) 51... b3 $19 {[%emt 0:00:40]} 52. axb3 {[%emt 0:01:15]} Nb4 {[%emt 0:00:11]} 53. Qc4 {[%emt 0:00:28]} Nxc2 {[%emt 0:00:18]} 54. Qxc2 {[%emt 0:00:01]} Qb7 {[%emt 0:00:13]} 55. g4 {[%emt 0:00:52]} Re8 {[%emt 0:01:01]} 56. Qf5 {[%emt 0:01:16]} (56. Qd3 $142) 56... Qxb3 {[%emt 0:00:45]} 57. g5 {[%emt 0:01:03]} Qe6 {[%emt 0:00:05]} 58. Qf4 $2 {[%emt 0:00:53]} (58. Qxe6 fxe6 59. g6) 58... fxg5 {[%emt 0:00:17]} 59. Nxg5 {[%emt 0:00:39]} Qg6 {[%emt 0:00:06]} 60. Kf1 {[%emt 0:00:37]} Rd8 {[%emt 0:00:49]} 61. Qa4 $2 {[%emt 0:01:24]} (61. Qe4) 61... Qd3+ {[%emt 0:00:37]} 62. Kg2 {[%emt 0:00:28]} Qd5+ {[%emt 0:00:11]} 63. Kh3 {[%emt 0:01:43]} (63. Qe4 $142) 63... Rd6 {[%emt 0:02:11]} 64. Qe8 {[%emt 0:01:12]} Qf5+ {[%emt 0:00:14]} (64... f6 $142 65. Qe4 fxg5 66. Qxd5+ Rxd5) 65. Kg3 $19 {[%emt 0:00:34]} Rd1 {[%emt 0:02:08]} 66. f4 {[%emt 0:00:47]} Qd7 {[%emt 0:04:57]} 67. Qe4 {[%emt 0:00:38]} g6 {[%emt 0:00:24]} 68. Qc4 {[%emt 0:00:50]} (68. Nf3 $142) 68... Qd5 {[%emt 0:00:34]} 69. Qa4 {[%emt 0:00:57]} (69. Qxd5 $142 Rxd5 70. Ne4) 69... Rd3 $19 {[%emt 0:01:24]} 70. Qe8 {[%emt 0:01:05]} Qd7 {[%emt 0:00:52]} (70... Ra3 $142 {White must now prevent ...Kg7.} 71. Kh4 Ra2 72. Qxf7+ Qxf7 73. Nxf7 Kxf7) 71. Qe5 {[%emt 0:00:59]} (71. Qxd7 $19 Rxd7 72. Kf3) 71... Bd6 {[%emt 0:00:19]} 72. Qe4 {[%emt 0:00:33]} Bc5 {[%emt 0:00:07]} 73. Qa8+ {[%emt 0:00:15]} Kg7 {[%emt 0:00:10]} 74. Qa1+ {[%emt 0:00:33]} Bd4 {[%emt 0:00:13]} 0-1